Workbook

Sheet Instructions
A1: Instructions
B2: Required only for Category 1 and Category 2
A3: 1 | B3: The purpose of this template is to provide a starting point for estimating cost of an underground power distribution project. This template can be used to compare costs for a project with and without introduction of advanced technology resulting from the GOPHURRS program.
A4: =+A3+1 -> 2 | B4: The spreadsheet has been created to serve as a starting point and example for level of sophistication of the analysis. Modification is encouraged, as needed.
A5: 3 | B5: This worksheet is intended to provide guidance on the per km cost metric. The input values are for example only.
A6: 4 | B6: Color coding is provided with blue for key input parameter, tan for text and copied parameters, green for intermediate calculations, and rust for key calculated values. See color code chart below.
A7: 5 | B7: This tool assumes all equipment will be rented. If needed, a page has been added to the spreadsheet for amortization of capital expense. The amortized amount can be added to the base model for a total project cost.
A8: 6 | B8: Overhead costs should be included in the total cost. Provisions have been made to include an overhead rate for each of the four cost categories and calculate the fully burdened cost.
A9: 7 | B9: A line for instrumentation cost has been included in the materials and material transport section. GOPHURRS is projected to develop instrumentation that will need to be accounted for.
A10: 8 | B10: Cost comparisons and percent reduction are shown on the next tab.
B12: Key input parameters
B13: Text and copied parameters
B14: Intermediate calculations
B15: Key calculated values

Sheet Inputs & Cost Comparison
B2: Input Parameters | C2: Amount | D2: Units
B3: Installed Distance | C3: 3000 | D3: m
B4: Overhead Rate: Consultant & Contractor | C4: 0.1
B5: Overhead Rate: Utility Labor | C5: 0.5
B6: Overhead Rate: Material & Material Transport | C6: 0.2
B7: Overhead Rate: Other costs | C7: 0.2
B8: Project Duration | C8: 24 | D8: months
B11: Cost Category | C11: Conventional Project Cost | D11: GOPHURRS Project Cost
B12: Consultant & Contractor Cost | C12: =+'Conventional Project Cost'!G42 -> 727100 | D12: =+'GOPHURRS Project Cost'!G42 -> 381150
B13: Utility Labor Cost | C13: =+'Conventional Project Cost'!G50 -> 157500 | D13: =+'GOPHURRS Project Cost'!G50 -> 45000
B14: Material & Material Transport Cost | C14: =+'Conventional Project Cost'!G66 -> 873600 | D14: =+'GOPHURRS Project Cost'!G66 -> 783600
B15: Other Costs | C15: =+'Conventional Project Cost'!G74 -> 102000 | D15: =+'GOPHURRS Project Cost'!G74 -> 78000
B16: Total Cost | C16: =SUM(C12:C15) -> 1860200 | D16: =SUM(D12:D15) -> 1287750
B17: Cost per km ($/km) | C17: =+C16*1000/$C$3 -> 620066.6667 | D17: =+D16*1000/$C$3 -> 429250
B18: Cost per mile ($/mile) | C18: =+C17/0.621 -> 998497.0478 | D18: =+D17/0.621 -> 691223.8325
B19: Percent Cost Reduction | D19: =+(C16-D16)/C16 -> 0.3077357273

Sheet Conventional Project Cost
B2: Conventional Project Cost
B4: Input Parameters | C4: Amount | D4: Units | F4: Results Summary | G4: Units | H4: Value
B5: Installed Distance | C5: =+'Inputs & Cost Comparison'!C3 -> 3000 | D5: m | F5: Project Cost | G5: ($) | H5: =+G42+G50+G66+G74 -> 1860200
B6: Overhead Rate: Consultant & Contractor | C6: =+'Inputs & Cost Comparison'!C4 -> 0.1 | F6: Cost per km | G6: ($/km) | H6: =+H5*1000/(C5) -> 620066.6667
B7: Overhead Rate: Utility Labor | C7: =+'Inputs & Cost Comparison'!C5 -> 0.5 | F7: Cost per mile | G7: ($/mile) | H7: =+H6/0.621 -> 998497.0478
B8: Overhead Rate: Material & Material Transport | C8: =+'Inputs & Cost Comparison'!C6 -> 0.2
B9: Overhead Rate: Other costs | C9: =+'Inputs & Cost Comparison'!C7 -> 0.2
B10: Project Duration | C10: =+'Inputs & Cost Comparison'!C8 -> 24 | D10: months
B12: 1. Consultant & Contractor Costs | C12: Quantity | D12: Units | E12: Cost per Unit | F12: Units | G12: Value | H12: Comment
B13: Project Management | C13: 300 | D13: Hours | E13: 100 | F13: ($/Hour) | G13: =+C13*E13 -> 30000
B14: Site preparation (vegetation control) | C14: =+C$5 -> 3000 | D14: m | E14: 5 | F14: ($/m) | G14: =+E14*C14 -> 15000
B15: Excavation & Backfilling
B16: a. Duct bank and direct conduit burial | C16: =+C$5 -> 3000 | D16: m | E16: 30 | F16: ($/m) | G16: =+E16*C16 -> 90000 | H16: Based upon depth
B17: b. Junction boxes | C17: 100 | D17: Each | E17: 10 | F17: ($) | G17: 2000 | H17: Based upon quantity and box dimensions
B18: c. Vaults | C18: 10 | D18: Each | E18: 10 | F18: ($) | G18: 2000 | H18: Based upon quantity and vault dimensions
B19: d. Access shafts | C19: 20 | D19: Each | E19: 50 | F19: ($) | G19: 2000 | H19: If needed for tunneling
B20: e. Spoil and waste management | C20: =+C$5 -> 3000 | D20: m | E20: 10 | F20: ($/m) | G20: =+E20*C20 -> 30000 | H20: Based upon depth
B21: Utility day-lighting (pot holing, underground survey/mapping) | C21: =+C$5 -> 3000 | D21: m | E21: 10 | F21: ($/m) | G21: =+E21*C21 -> 30000
B22: Repaving | C22: =+C$5 -> 3000 | D22: m | E22: 10 | F22: ($/m) | G22: =+E22*C22 -> 30000
B23: Restoring landscapes (vegetation) | C23: =+C$5 -> 3000 | D23: m | E23: 10 | F23: ($/m) | G23: =+E23*C23 -> 30000
B24: Install duct banks and conduits | C24: =+C$5 -> 3000 | D24: m | E24: 5 | F24: ($/m) | G24: =+E24*C24 -> 15000 | H24: Based upon quantity and unit cost
B25: Install junction boxes | C25: =+C17 -> 100 | D25: Each | E25: 10 | F25: ($) | G25: 2000 | H25: Based upon quantity and unit cost
B26: Install vaults | C26: =+C18 -> 10 | D26: Each | E26: 20 | F26: ($) | G26: 2000 | H26: Based upon quantity and unit cost
B27: Install access shafts | C27: 20 | D27: Each | E27: 50 | F27: ($) | G27: 2000 | H27: If needed for tunneling
B28: Install pads for pad-mount equipment | C28: 30 | D28: Each | E28: 10 | F28: ($) | G28: 2000 | H28: Based upon quantity and unit cost
B29: Install cables | C29: =+C$5 -> 3000 | D29: m | E29: 10 | F29: ($/m) | G29: =+E29*C29 -> 30000 | H29: Based upon depth and quantity
B30: Install joints (splice, termination, elbow) | C30: 100 | D30: Each | E30: 10 | F30: ($) | G30: 2000 | H30: Based upon quantity and unit cost
B31: Transportation | C31: Line Item | G31: 25000 | H31: Quantify amount
B32: Instrumentation (if needed) | C32: Line Item | G32: 0 | H32: Quantify amount
B33: Permitting | C33: Line Item | G33: 50000 | H33: Quantify amount
B34: Access roads and matting | C34: Line Item | G34: 50000 | H34: Quantify amount
B35: Environmental Health & Safety | C35: Line Item | G35: 75000 | H35: Quantify amount
B36: Temporary facilities | C36: Line Item | G36: 20000 | H36: Quantify amount
B37: Equipment rental | C37: Line Item | G37: 100000 | H37: Total equipment rental cost
B38: Damages and repairs | C38: Line Item | G38: 25000 | H38: Estimate amount
B39: Direct Cost: Consultant & Contractor | C39: ($) | G39: =SUM(G13:G38) -> 661000
B40: Overhead Rate: Consultant & Contractor | G40: =+C6 -> 0.1
B41: Overhead: Consultant & Contractor Cost | G41: =+G39*G40 -> 66100
B42: Total Consultant & Contractor Cost | C42: ($) | G42: =+G41+G39 -> 727100
B44: 2. Utility Labor Costs | C44: Quantity | D44: Units | E44: Cost per Unit | F44: Units | G44: Value | H44: Comment
B45: Project Management | C45: 1000 | D45: Hours | E45: 100 | F45: ($/Hour) | G45: =+C45*E45 -> 100000 | H45: Utility project management
B46: Utility installations | C46: Line Item | G46: 5000
B47: Direct Cost: Utility Labor | C47: ($) | G47: =SUM(G45:G46) -> 105000
B48: Overhead Rate: Utility Labor | G48: =+C7 -> 0.5
B49: Overhead: Utility Labor | C49: ($) | G49: =+G48*G47 -> 52500
B50: Total Utility Labor Cost | C50: ($/km) | G50: =+G49+G47 -> 157500
B52: 3. Material & Material Transport Costs | C52: Quantity | D52: Units | E52: Cost per Unit | F52: Units | G52: Value | H52: Comment
B53: Cable | C53: =+C$5 -> 3000 | D53: m | E53: 100 | F53: ($/m) | G53: =+E53*C53 -> 300000 | H53: Material Cost
B54: Conduit | C54: =+C$5 -> 3000 | D54: m | E54: 50 | F54: ($/m) | G54: =+E54*C54 -> 150000 | H54: Material Cost
B55: Duct Banks (if needed) | C55: =+C$5 -> 3000 | D55: m | E55: 20 | F55: ($/m) | G55: =+E55*C55 -> 60000 | H55: Material Cost
B56: Access shafts | C56: =+C19 -> 20 | D56: Each | E56: 100 | F56: ($) | G56: 2000 | H56: Material Cost
B57: Junction boxes | C57: =+C19 -> 20 | D57: Each | E57: 10 | F57: ($) | G57: 2000 | H57: Material Cost
B58: Vaults | C58: =+C18 -> 10 | D58: Each | E58: 100 | F58: ($) | G58: 2000 | H58: Material Cost
B59: Equipment mounting pads | C59: =+C28 -> 30 | D59: Each | E59: 500 | F59: ($) | G59: 2000 | H59: Material Cost
B60: Terminations | C60: =+C$5 -> 3000 | D60: m | E60: 10 | F60: ($/m) | G60: =+E60*C60 -> 30000 | H60: Material Cost
B61: Materials Transport & Handling | C61: =+C$5 -> 3000 | D61: m | E61: 10 | F61: ($/m) | G61: =+E61*C61 -> 30000 | H61: Transportation Cost based on $/m
B62: Consumables | C62: 3000 | D62: m | E62: 50 | F62: ($/m) | G62: =+E62*C62 -> 150000 | H62: Material Cost
B63: Direct Cost: Material & Material Transport | C63: ($) | G63: =SUM(G53:G62) -> 728000
B64: Overhead Rate: Material & Material Transport | G64: =+$C$8 -> 0.2
B65: Overhead: Material & Material Transport | C65: ($) | G65: =+G64*G63 -> 145600
B66: Total Material & Material Transport Cost | C66: ($/m) | G66: =+G65+G63 -> 873600
B68: 4. Other Costs
B69: AFUDC & Interest | C69: Line Item | G69: 50000 | H69: Quantify Amount
B70: Insurance | C70: Line Item | G70: 35000 | H70: Quantify Amount
B71: Direct Other Costs | C71: ($) | G71: =+G70+G69 -> 85000
B72: Overhead Rate: Other Costs | C72: =+C9 -> 0.2 | G72: =+C9 -> 0.2
B73: Overhead: Other Costs | C73: ($) | G73: =+G71*G72 -> 17000
B74: Total Other Costs | C74: ($/m) | G74: =+G73+G71 -> 102000

Sheet GOPHURRS Project Cost
B2: GOPHURRS Project Cost
B4: Input Parameters | C4: Amount | D4: Units | F4: Results Summary | G4: Units | H4: Value
B5: Installed Distance | C5: =+'Inputs & Cost Comparison'!C3 -> 3000 | D5: m | F5: Project Cost | G5: ($) | H5: =+G42+G50+G66+G74 -> 1287750
B6: Overhead Rate: Consultant & Contractor | C6: =+'Inputs & Cost Comparison'!C4 -> 0.1 | F6: Cost per km | G6: ($/km) | H6: =+H5*1000/(C5) -> 429250
B7: Overhead Rate: Utility Labor | C7: =+'Inputs & Cost Comparison'!C5 -> 0.5 | F7: Cost per mile | G7: ($/mile) | H7: =+H6/0.621 -> 691223.8325
B8: Overhead Rate: Material & Material Transport | C8: =+'Inputs & Cost Comparison'!C6 -> 0.2
B9: Overhead Rate: Other costs | C9: =+'Inputs & Cost Comparison'!C7 -> 0.2
B10: Project Duration | C10: =+'Inputs & Cost Comparison'!C8 -> 24 | D10: months
B12: 1. Consultant & Contractor Costs | C12: Quantity | D12: Units | E12: Cost per Unit | F12: Units | G12: Value | H12: Comment
B13: Project Management | C13: 250 | D13: Hours | E13: 100 | F13: ($/Hour) | G13: =+C13*E13 -> 25000
B14: Site preparation (vegetation control) | C14: =+C$5 -> 3000 | D14: m | E14: 1 | F14: ($/m) | G14: =+E14*C14 -> 3000
B15: Excavation & Backfilling
B16: a. Duct bank and direct conduit burial | C16: =+C$5 -> 3000 | D16: m | E16: 1 | F16: ($/m) | G16: =+E16*C16 -> 3000 | H16: Based upon depth
B17: b. Junction boxes | C17: 50 | D17: Each | E17: 1 | F17: ($) | G17: 2000 | H17: Based upon quantity and box dimensions
B18: c. Vaults | C18: 5 | D18: Each | E18: 1 | F18: ($) | G18: 2000 | H18: Based upon quantity and vault dimensions
B19: d. Access shafts | C19: 5 | D19: Each | E19: 25 | F19: ($) | G19: 2000 | H19: If needed for tunneling
B20: e. Spoil and waste management | C20: =+C$5 -> 3000 | D20: m | E20: 1 | F20: ($/m) | G20: =+E20*C20 -> 3000 | H20: Based upon depth
B21: Utility day-lighting (pot holing, underground survey/mapping) | C21: =+C$5 -> 3000 | D21: m | E21: 2.5 | F21: ($/m) | G21: =+E21*C21 -> 7500
B22: Repaving | C22: =+C$5 -> 3000 | D22: m | E22: 1 | F22: ($/m) | G22: =+E22*C22 -> 3000
B23: Restoring landscapes (vegetation) | C23: =+C$5 -> 3000 | D23: m | E23: 1 | F23: ($/m) | G23: =+E23*C23 -> 3000
B24: Install duct banks and conduits | C24: =+C$5 -> 3000 | D24: m | E24: 1 | F24: ($/m) | G24: =+E24*C24 -> 3000 | H24: Based upon quantity and unit cost
B25: Install junction boxes | C25: =+C17 -> 50 | D25: Each | E25: 1 | F25: ($) | G25: 2000 | H25: Based upon quantity and unit cost
B26: Install vaults | C26: =+C18 -> 5 | D26: Each | E26: 10 | F26: ($) | G26: 2000 | H26: Based upon quantity and unit cost
B27: Install access shafts | C27: 5 | D27: Each | E27: 50 | F27: ($) | G27: 2000 | H27: If needed for tunneling
B28: Install pads for pad-mount equipment | C28: 15 | D28: Each | E28: 10 | F28: ($) | G28: 2000 | H28: Based upon quantity and unit cost
B29: Install cables | C29: =+C$5 -> 3000 | D29: m | E29: 5 | F29: ($/m) | G29: =+E29*C29 -> 15000 | H29: Based upon depth and quantity
B30: Install joints (splice, termination, elbow) | C30: 75 | D30: Each | E30: 5 | F30: ($) | G30: 2000 | H30: Based upon quantity and unit cost
B31: Transportation | C31: Line Item | G31: 25000 | H31: Quantify amount
B32: Instrumentation (if needed) | C32: Line Item | G32: 100000 | H32: Quantify amount
B33: Permitting | C33: Line Item | G33: 40000 | H33: Quantify amount
B34: Access roads and matting | C34: Line Item | G34: 10000 | H34: Quantify amount
B35: Environmental Health & Safety | C35: Line Item | G35: 25000 | H35: Quantify amount
B36: Temporary facilities | C36: Line Item | G36: 10000 | H36: Quantify amount
B37: Equipment rental | C37: Line Item | G37: 50000 | H37: Total equipment rental cost
B38: Damages and repairs | C38: Line Item | G38: 5000 | H38: Estimate amount
B39: Direct Cost: Consultant & Contractor | C39: ($) | G39: =SUM(G13:G38) -> 346500
B40: Overhead Rate: Consultant & Contractor | G40: =+C6 -> 0.1
B41: Overhead: Consultant & Contractor Cost | G41: =+G39*G40 -> 34650
B42: Total Consultant & Contractor Cost | C42: ($) | G42: =+G41+G39 -> 381150
B44: 2. Utility Labor Costs | C44: Quantity | D44: Units | E44: Cost per Unit | F44: Units | G44: Value | H44: Comment
B45: Project Management | C45: 250 | D45: Hours | E45: 100 | F45: ($/Hour) | G45: =+C45*E45 -> 25000 | H45: Utility project management
B46: Utility installations | C46: Line Item | G46: 5000
B47: Direct Cost: Utility Labor | C47: ($) | G47: =SUM(G45:G46) -> 30000
B48: Overhead Rate: Utility Labor | G48: =+C7 -> 0.5
B49: Overhead: Utility Labor | C49: ($) | G49: =+G48*G47 -> 15000
B50: Total Utility Labor Cost | C50: ($/km) | G50: =+G49+G47 -> 45000
B52: 3. Material & Material Transport Costs | C52: Quantity | D52: Units | E52: Cost per Unit | F52: Units | G52: Value | H52: Comment
B53: Cable | C53: =+C$5 -> 3000 | D53: m | E53: 100 | F53: ($/m) | G53: =+E53*C53 -> 300000 | H53: Material Cost
B54: Conduit | C54: =+C$5 -> 3000 | D54: m | E54: 50 | F54: ($/m) | G54: =+E54*C54 -> 150000 | H54: Material Cost
B55: Duct Banks (if needed) | C55: =+C$5 -> 3000 | D55: m | E55: 20 | F55: ($/m) | G55: =+E55*C55 -> 60000 | H55: Material Cost
B56: Access shafts | C56: =+C19 -> 5 | D56: Each | E56: 100 | F56: ($) | G56: 2000 | H56: Material Cost
B57: Junction boxes | C57: =+C19 -> 5 | D57: Each | E57: 10 | F57: ($) | G57: 2000 | H57: Material Cost
B58: Vaults | C58: =+C18 -> 5 | D58: Each | E58: 100 | F58: ($) | G58: 2000 | H58: Material Cost
B59: Equipment mounting pads | C59: =+C28 -> 15 | D59: Each | E59: 500 | F59: ($) | G59: 2000 | H59: Material Cost
B60: Terminations | C60: =+C$5 -> 3000 | D60: m | E60: 10 | F60: ($/m) | G60: =+E60*C60 -> 30000 | H60: Material Cost
B61: Materials Transport & Handling | C61: =+C$5 -> 3000 | D61: m | E61: 10 | F61: ($/m) | G61: =+E61*C61 -> 30000 | H61: Transportation Cost based on $/m
B62: Consumables | C62: 3000 | D62: m | E62: 25 | F62: ($/m) | G62: =+E62*C62 -> 75000 | H62: Material Cost
B63: Direct Cost: Material & Material Transport | C63: ($) | G63: =SUM(G53:G62) -> 653000
B64: Overhead Rate: Material & Material Transport | G64: =+$C$8 -> 0.2
B65: Overhead: Material & Material Transport | C65: ($) | G65: =+G64*G63 -> 130600
B66: Total Material & Material Transport Cost | C66: ($/m) | G66: =+G65+G63 -> 783600
B68: 4. Other Costs
B69: AFUDC & Interest | C69: Line Item | G69: 40000 | H69: Quantify Amount
B70: Insurance | C70: Line Item | G70: 25000 | H70: Quantify Amount
B71: Direct Other Costs | C71: ($) | G71: =+G70+G69 -> 65000
B72: Overhead Rate: Other Costs | C72: =+C9 -> 0.2 | G72: =+C9 -> 0.2
B73: Overhead: Other Costs | C73: ($) | G73: =+G71*G72 -> 13000
B74: Total Other Costs | C74: ($/m) | G74: =+G73+G71 -> 78000

Sheet CAPEX Amortization
B1: Input Parameters | C1: Units | D1: Value | E1: Comment
B2: Overhead Rate: CAPEX | D2: 1.1
B3: Project Duration | C3: months | D3: 24
B6: Capital Equipment Costs
C7: Units | D7: Capital Equipment #1: Mapping & Survey | E7: Capital Equipment #2: Drilling | F7: Capital Equipment #3: Restoration Service | G7: Capital Equipment #4: (As needed) | H7: Cost Modeling Tool can be expanded for additional capital equipment items
B8: CAPEX | C8: ($) | D8: 50000 | E8: 75000 | F8: 0 | G8: 0
B9: Annual return on CAPEX | C9: (%) | D9: 0.08 | E9: 0.08 | F9: 0.08 | G9: 0.08
B10: Useful life | C10: (yrs) | D10: 3 | E10: 5 | F10: 5 | G10: 5
B11: Annual amortized cost recovery for tool CAPEX, including Annual return on CAPEX | C11: ($/year) | D11: =-PMT(D9,D10,D8) -> 19401.6757 | E11: =-PMT(E9,E10,E8) -> 18784.23409 | F11: =-PMT(F9,F10,F8) -> 0 | G11: =-PMT(G9,G10,G8) -> 0
B12: Monthly amortized cost recovery for tool CAPEX, including Annual return on CAPEX | C12: ($/month) | D12: =+D11/12 -> 1616.806309 | E12: =+E11/12 -> 1565.352841 | F12: =+F11/12 -> 0 | G12: =+G11/12 -> 0
B13: Capital Equipment Maintenance | C13: % of CAPEX | D13: 0.1 | E13: 0.1
B14: Annual Capital Equipment Maintenance Cost | C14: ($/year) | D14: =+D13*D8 -> 5000 | E14: =+E13*E8 -> 7500 | F14: =+F13*F8 -> 0 | G14: =+G13*G8 -> 0
B15: Monthly Capital Equipment Maintenance Cost | C15: ($/month) | D15: =+D14/12 -> 416.6666667 | E15: =+E14/12 -> 625 | F15: =+F14/12 -> 0 | G15: =+G14/12 -> 0
B16: Monthly Direct CAPEX | C16: ($/month) | D16: =+D15+D12 -> 2033.472975 | E16: =+E15+E12 -> 2190.352841 | F16: =+F15+F12 -> 0 | G16: =+G15+G12 -> 0
B17: Overhead Rate: CAPEX | D17: =+$D2 -> 1.1 | E17: =+$D2 -> 1.1 | F17: =+$D2 -> 1.1 | G17: =+$D2 -> 1.1
B18: Overhead: CAPEX | C18: ($) | D18: =+D16*D17 -> 2236.820273 | E18: =+E16*E17 -> 2409.388125 | F18: =+F16*F17 -> 0 | G18: =+G16*G17 -> 0
B19: Monthly Project CAPEX (amortized cost recovery + capital equipment maintenance) | C19: ($/month) | D19: =+D16+D18 -> 4270.293248 | E19: =+E16+E18 -> 4599.740966 | F19: =+F16+F18 -> 0 | G19: =+G16+G18 -> 0
B20: Term of Project CAPEX | C20: ($) | D20: =+D19*$D3 -> 102487.0379 | E20: =+E19*$D3 -> 110393.7832 | F20: 0 | G20: 0
B21: Total CAPEX (Categories # 1 - 4) | C21: ($) | D21: =SUM(D20:G20) -> 212880.8211
